fUSD/lending_fUSD_20241207
["ID","MTS","AMOUNT","RATE_DAILY","PERIOD"]
[344561085,1733549473342,-361.47599,0.00012329,2]
[344561086,1733549473353,-718.034538,0.00012329,2]
[344561087,1733549473363,-718.034538,0.00012329,2]
[344561088,1733549473371,-361.47599,0.00012329,2]
[344561089,1733549473381,-718.034538,0.00012329,2]
[344561090,1733549473390,-361.47599,0.00012329,2]
[344561091,1733549473399,-718.034538,0.00012329,2]
[344561092,1733549473409,-361.47599,0.00012329,2]
[344561093,1733549473418,-361.475988,0.00012329,2]
[344561094,1733549473427,-718.034538,0.00012329,2]
[344561095,1733549473437,-718.034538,0.00012329,2]
[344561096,1733549473446,-718.034538,0.00012329,2]
[344561097,1733549473455,-718.034547,0.00012329,2]
[344561098,1733549473464,-167.739816,0.00012329,2]
[344561099,1733549473473,-2767.988494,0.00012329,2]
[344561100,1733549473482,-2767.988494,0.00012329,2]
[344561101,1733549473491,-2767.988494,0.00012329,2]
[344561102,1733549473500,-2767.988494,0.00012329,2]
[344561103,1733549473509,-2767.988494,0.00012329,2]
[344561104,1733549473518,-2767.988494,0.00012329,2]
[344561105,1733549473527,-2767.988494,0.00012329,2]
[344561106,1733549473538,-2767.988488,0.00012329,2]
[344561107,1733549473547,-157.720725,0.00012329,2]
[344561108,1733549473556,-1804.842728,0.00012329,2]
[344561109,1733549473566,-1804.842728,0.00012329,2]
[344561110,1733549473575,-1804.842728,0.00012329,2]
[344561111,1733549473585,-1804.842728,0.00012329,2]
[344561112,1733549473594,-1804.842728,0.00012329,2]
[344561113,1733549473603,-1804.842728,0.00012329,2]
[344561114,1733549473615,-1804.842728,0.00012329,2]
[344561115,1733549473629,-1804.842721,0.00012329,2]
[344561116,1733549473649,-516.627856,0.00012329,2]
[344561117,1733549473658,-516.627856,0.00012329,2]
[344561118,1733549473667,-516.627856,0.00012329,2]
[344561119,1733549473677,-151.0,0.00012329,2]
[344561120,1733549473686,-516.627856,0.00012329,2]
[344561121,1733549473696,-151.0,0.00012329,2]
[344561122,1733549473706,-151.0,0.00012329,2]
[344561123,1733549473716,-516.627856,0.00012329,2]
[344561124,1733549473726,-516.627848,0.00012329,2]
[344561125,1733549473735,-264.212757,0.00012329,2]
[344561126,1733549473745,-264.212757,0.00012329,2]
[344561127,1733549473754,-264.212757,0.00012329,2]
[344561128,1733549473930,-264.212757,0.00012329,2]
[344561129,1733549473940,-264.212757,0.00012329,2]
[344561130,1733549473949,-264.212757,0.00012329,2]
[344561131,1733549473959,-264.212757,0.00012329,2]
[344561132,1733549473968,-264.212752,0.00012329,2]
[344561133,1733549473978,-2273.343788,0.00012329,2]
[344561134,1733549473987,-2273.343788,0.00012329,2]
[344561135,1733549473996,-2273.343788,0.00012329,2]
[344561136,1733549474006,-2273.343788,0.00012329,2]
[344561137,1733549474015,-2273.343788,0.00012329,2]
[344561138,1733549474025,-2273.34378,0.00012329,2]
[344561139,1733549474034,-779.183358,0.00012329,2]
[344561140,1733549474046,-779.183358,0.00012329,2]
[344561141,1733549474055,-779.183358,0.00012329,2]
[344561142,1733549474065,-779.183358,0.00012329,2]
[344561143,1733549474076,-779.183358,0.00012329,2]
[344561144,1733549474088,-779.183366,0.00012329,2]
[344561145,1733549474097,-2455.166915,0.00012329,2]
[344561146,1733549474107,-2455.166915,0.00012329,2]
[344561147,1733549474117,-2455.166915,0.00012329,2]
[344561148,1733549474127,-10000.0,0.00012329,2]
[344561149,1733549474137,-10000.0,0.00012329,2]
[344561150,1733549474148,-10000.0,0.00012329,2]
[344561151,1733549474158,-10000.0,0.00012329,2]
[344561152,1733549474168,-2455.166915,0.00012329,2]
[344561153,1733549474177,-2455.166915,0.00012329,2]
[344561154,1733549474187,-2455.166909,0.00012329,2]
[344561155,1733549474197,-10000.0,0.00012329,2]
[344561156,1733549474207,-10000.0,0.00012329,2]
[344561157,1733549474217,-10000.0,0.00012329,2]
[344561158,1733549474230,-10000.0,0.00012329,2]
[344561159,1733549474241,-291.152796,0.00012329,2]
[344561160,1733549474252,-291.152796,0.00012329,2]
[344561161,1733549474262,-291.152796,0.00012329,2]
[344561162,1733549474272,-291.152796,0.00012329,2]
[344561163,1733549474285,-291.152796,0.00012329,2]
[344561164,1733549474296,-291.152792,0.00012329,2]
[344561165,1733549474305,-346.995235,0.00012329,2]
[344561166,1733549474314,-346.995235,0.00012329,2]
[344561167,1733549474326,-346.995235,0.00012329,2]
[344561168,1733549474335,-346.995235,0.00012329,2]
[344561169,1733549474344,-346.995235,0.00012329,2]
[344561170,1733549474354,-346.995235,0.00012329,2]
[344561171,1733549474364,-346.995235,0.00012329,2]
[344561172,1733549474373,-346.995226,0.00012329,2]
[344561173,1733549474383,-2274.653178,0.00012329,2]
[344561174,1733549474392,-2274.653178,0.00012329,2]
[344561175,1733549474402,-2274.653178,0.00012329,2]
[344561176,1733549474412,-2274.653178,0.00012329,2]
[344561177,1733549474421,-239.958045,0.00012329,2]
[344561178,1733549474430,-2274.653178,0.00012329,2]
[344561179,1733549474439,-239.958045,0.00012329,2]
[344561180,1733549474448,-2274.653178,0.00012329,2]
[344561181,1733549474458,-239.958045,0.00012329,2]
[344561182,1733549474467,-2274.653178,0.00012329,2]
[344561183,1733549474476,-2274.653184,0.00012329,2]
[344561184,1733549474486,-239.958045,0.00012329,2]
[344561185,1733549474495,-239.958045,0.00012329,2]
[344561186,1733549474504,-239.95805,0.00012329,2]
[344561187,1733549474514,-276.597449,0.00012329,2]
[344561188,1733549474524,-276.597449,0.00012329,2]
[344561189,1733549474534,-276.597449,0.00012329,2]
[344561190,1733549474544,-276.597449,0.00012329,2]
[344561191,1733549474553,-276.597449,0.00012329,2]
[344561192,1733549474563,-276.597449,0.00012329,2]
[344561193,1733549474573,-276.597449,0.00012329,2]
[344561194,1733549474584,-276.597455,0.00012329,2]
[344561195,1733549474593,-316.299575,0.00012329,2]
[344561196,1733549474602,-316.299575,0.00012329,2]
[344561197,1733549474611,-316.299575,0.00012329,2]
[344561198,1733549474620,-316.299575,0.00012329,2]
[344561199,1733549474630,-316.299575,0.00012329,2]
[344561200,1733549474639,-151.0,0.00012329,2]
[344561201,1733549474648,-151.0,0.00012329,2]
[344561202,1733549474657,-316.299575,0.00012329,2]
[344561203,1733549474667,-151.0,0.00012329,2]
[344561204,1733549474676,-316.299575,0.00012329,2]
[344561205,1733549474686,-151.0,0.00012329,2]
[344561206,1733549474695,-316.299574,0.00012329,2]
[344561207,1733549474706,-442.521793,0.00012329,2]
[344561208,1733549474716,-442.521793,0.00012329,2]
[344561209,1733549474726,-442.521793,0.00012329,2]
[344561210,1733549474735,-442.521793,0.00012329,2]
[344561211,1733549474745,-442.521793,0.00012329,2]
[344561212,1733549474755,-442.521785,0.00012329,2]
[344561213,1733549474765,-151.0,0.00012329,2]
[344561214,1733549474774,-151.0,0.00012329,2]
[344561215,1733549474784,-151.0,0.00012329,2]
[344561216,1733549474796,-151.0,0.00012329,2]
[344561217,1733549474806,-151.0,0.00012329,2]
[344561218,1733549474815,-151.0,0.00012329,2]
[344561219,1733549474825,-151.0,0.00012329,2]
[344561220,1733549474834,-151.0,0.00012329,2]
[344561221,1733549474844,-151.0,0.00012329,2]
[344561222,1733549474854,-177.575407,0.00012329,2]
[344561223,1733549474863,-177.575407,0.00012329,2]
[344561224,1733549474873,-177.575407,0.00012329,2]
[344561225,1733549474882,-177.575407,0.00012329,2]
[344561226,1733549474893,-177.575407,0.00012329,2]
[344561227,1733549474903,-177.575407,0.00012329,2]
[344561228,1733549474912,-177.575407,0.00012329,2]
[344561229,1733549474922,-177.575409,0.00012329,2]
[344561230,1733549474931,-291.326321,0.00012329,2]
[344561231,1733549474941,-291.326321,0.00012329,2]
[344561232,1733549474950,-291.326321,0.00012329,2]
[344561233,1733549474959,-291.326321,0.00012329,2]
[344561234,1733549474969,-291.326321,0.00012329,2]
[344561235,1733549474979,-291.326321,0.00012329,2]
[344561236,1733549474989,-291.326321,0.00012329,2]
[344561237,1733549474998,-291.326328,0.00012329,2]
[344561238,1733549475007,-500.0,0.00012335,2]
[344561239,1733549475016,-517.0,0.00012335,2]
[344561240,1733549475026,-529.18,0.00012336,2]
[344561241,1733549475036,-500.0,0.00012336,2]
[344561242,1733549475050,-500.0,0.00012336,2]
[344561243,1733549475059,-500.0,0.00012336,2]
[344561244,1733549475068,-500.0,0.00012336,2]
[344561245,1733549475077,-500.0,0.00012336,2]
[344561246,1733549475086,-518.39,0.00012336,2]
[344561247,1733549475095,-500.0,0.00012336,2]
[344561248,1733549475105,-530.18,0.00012336,2]
[344561249,1733549475114,-500.0,0.00012336,2]
[344561250,1733549475123,-500.0,0.00012336,2]
[344561251,1733549475134,-500.0,0.00012336,2]
[344561252,1733549475143,-500.0,0.00012336,2]
[344561253,1733549475152,-500.0,0.00012336,2]
[344561254,1733549475162,-500.0,0.00012336,2]
[344561255,1733549475171,-500.0,0.00012336,2]
[344561256,1733549475181,-500.0,0.00012336,2]
[344561257,1733549475190,-541.02,0.00012336,2]
[344561258,1733549475199,-500.0,0.00012336,2]
[344561259,1733549475208,-500.0,0.00012336,2]
[344561260,1733549475217,-500.0,0.00012336,2]
[344561261,1733549475227,-500.0,0.00012336,2]
[344561262,1733549475237,-641.74,0.00012336,2]
[344561263,1733549475247,-500.0,0.00012336,2]
[344561264,1733549475256,-564.55,0.00012336,2]
[344561265,1733549475265,-229.04,0.00012336,2]
[344561266,1733549475275,-500.0,0.00012336,2]
[344561267,1733549475289,-500.0,0.00012336,2]
[344561268,1733549475298,-546.46,0.00012336,2]
[344561269,1733549475308,-500.0,0.00012336,2]
[344561270,1733549475317,-500.0,0.00012336,2]
[344561271,1733549475326,-500.0,0.00012336,2]
[344561272,1733549475335,-500.0,0.00012336,2]
[344561273,1733549475345,-500.0,0.00012336,2]
[344561274,1733549475354,-500.0,0.00012336,2]
[344561275,1733549475364,-500.0,0.00012336,2]
[344561276,1733549475373,-837.24,0.00012336,2]
[344561277,1733549475383,-500.0,0.00012336,2]
[344561278,1733549475392,-500.0,0.00012336,2]
[344561279,1733549475401,-500.0,0.00012336,2]
[344561280,1733549475410,-500.0,0.00012336,2]
[344561281,1733549475420,-500.0,0.00012336,2]
[344561282,1733549475430,-596.47,0.00012336,2]
[344561283,1733549475439,-500.0,0.00012336,2]
[344561284,1733549475449,-500.0,0.00012336,2]
[344561285,1733549475458,-500.0,0.00012336,2]
[344561286,1733549475467,-687.18,0.00012336,2]
[344561287,1733549475476,-555.71,0.00012336,2]
[344561288,1733549475486,-512.46,0.00012336,2]
[344561289,1733549475495,-500.0,0.00012336,2]
[344561290,1733549475505,-500.0,0.00012336,2]
[344561291,1733549475515,-500.0,0.00012336,2]
[344561292,1733549475524,-500.0,0.00012336,2]
[344561293,1733549475534,-500.0,0.00012336,2]
[344561294,1733549475545,-500.0,0.00012336,2]
[344561295,1733549475555,-500.0,0.00012336,2]
[344561296,1733549475563,-500.0,0.00012337,2]
[344561297,1733549475573,-500.0,0.00012337,2]
[344561298,1733549475582,-500.0,0.00012337,2]
[344561299,1733549475591,-500.0,0.00012337,2]
[344561300,1733549475600,-500.0,0.00012337,2]
[344561301,1733549475609,-500.0,0.00012337,2]
[344561302,1733549475619,-500.0,0.00012337,2]
[344561303,1733549475628,-500.0,0.00012337,2]
[344561304,1733549475637,-500.0,0.00012337,2]
[344561305,1733549475646,-500.0,0.00012337,2]
[344561306,1733549475655,-500.0,0.00012337,2]
[344561307,1733549475664,-500.0,0.00012337,2]
[344561308,1733549475674,-500.0,0.00012337,2]
[344561309,1733549475683,-500.0,0.00012337,2]
[344561310,1733549475692,-500.0,0.00012337,2]
[344561311,1733549475702,-363.490396,0.00012338,2]
[344561312,1733549475711,-363.4904,0.00012338,2]
[344561313,1733549475720,-374.963914,0.00012339,2]
[344561314,1733549475730,-374.963914,0.00012339,2]
[344561315,1733549475739,-430.373078,0.00012339,2]
[344561316,1733549475748,-430.373078,0.00012339,2]
[344561317,1733549475757,-374.963914,0.0001234,2]
[344561318,1733549475766,-374.963912,0.0001234,2]
[344561319,1733549475775,-430.373078,0.0001234,2]
[344561320,1733549475785,-430.373088,0.0001234,2]
[344561321,1733549475796,-150.0,0.00012398,2]
[344561322,1733549475805,-150.0,0.00012398,3]
[344561323,1733549475816,-2918.60948477,0.00012402,2]
[344561324,1733549475825,-500.0,0.00012472,2]
[344561325,1733549475834,-200.0,0.00012498,3]
[344561326,1733549475844,-200.0,0.00012498,3]
[344561327,1733549475853,-200.0,0.00012498,2]
[344561328,1733549475862,-200.0,0.00012498,2]
[344561329,1733549475871,-293.13858691,0.000125,2]
[344561330,1733549475881,-2918.60948477,0.00012568,2]
[344561331,1733549475890,-257.0,0.0001258,2]
[344561332,1733549475899,-2700.0,0.000126,4]
[344561333,1733549475908,-589.01,0.00012601,2]
[344561334,1733549475917,-500.0,0.00012601,2]
[344561335,1733549475927,-1582.27,0.00012601,2]
[344561336,1733549475936,-632.65,0.00012601,2]
[344561337,1733549475946,-500.0,0.00012601,2]
[344561338,1733549475956,-2020.28,0.00012601,2]
[344561339,1733549475965,-513.63,0.00012601,2]
[344561340,1733549475974,-1046.26,0.00012601,2]
[344561341,1733549475984,-500.0,0.00012601,2]
[344561342,1733549475993,-651.7,0.00012601,2]
[344561343,1733549476002,-1141.16,0.00012601,2]
[344561344,1733549476064,-542.21,0.00012601,2]
[344561345,1733549476073,-500.0,0.00012601,2]
[344561346,1733549476082,-519.81,0.00012601,2]
[344561347,1733549476091,-500.0,0.00012601,2]
[344561348,1733549476100,-3914.05,0.00012601,2]
[344561349,1733549476109,-666.86,0.00012601,2]
[344561350,1733549476118,-572.6,0.00012601,2]
[344561351,1733549476127,-500.0,0.00012601,2]
[344561352,1733549476136,-1173.93,0.00012601,2]
[344561353,1733549476145,-3608.55,0.00012601,2]
[344561354,1733549476154,-500.0,0.00012601,2]
[344561355,1733549476163,-575.27,0.00012601,2]
[344561356,1733549476171,-500.0,0.00012601,2]
[344561357,1733549476180,-500.0,0.00012601,2]
[344561358,1733549476189,-500.0,0.00012601,2]
[344561359,1733549476198,-500.0,0.00012601,2]
[344561360,1733549476208,-500.0,0.00012601,2]
[344561361,1733549476217,-2759.46,0.00012601,2]
[344561362,1733549476227,-500.0,0.00012601,2]
[344561363,1733549476237,-1012.98,0.00012601,2]
[344561364,1733549476246,-556.62,0.00012601,2]
[344561365,1733549476256,-3673.37,0.00012601,2]
[344561366,1733549476265,-161.92,0.00012601,2]
[344561367,1733549476277,-500.0,0.00012601,2]
[344561368,1733549476292,-1093.24,0.00012601,2]
[344561369,1733549476301,-500.0,0.00012601,2]
[344561370,1733549476310,-1638.3,0.00012601,2]
[344561371,1733549476319,-500.0,0.00012601,2]
[344561372,1733549476330,-1124.94,0.00012601,2]
[344561373,1733549476338,-500.0,0.00012601,2]
[344561374,1733549476348,-2182.22,0.00012601,2]
[344561375,1733549476358,-1468.75,0.00012601,2]
[344561376,1733549476367,-643.44,0.00012601,2]
[344561377,1733549476376,-500.0,0.00012601,2]
[344561378,1733549476385,-500.0,0.00012601,2]
[344561379,1733549476395,-1445.63,0.00012601,2]
[344561380,1733549476404,-500.0,0.00012601,2]
[344561381,1733549476416,-500.0,0.00012601,2]
[344561382,1733549476425,-500.0,0.00012601,2]
[344561383,1733549476434,-627.68,0.00012601,2]
[344561384,1733549476444,-500.0,0.00012602,2]
[344561385,1733549476453,-500.0,0.00012602,2]
[344561386,1733549476462,-500.0,0.00012602,2]
[344561387,1733549476471,-500.0,0.00012602,2]
[344561388,1733549476481,-500.0,0.00012602,2]
[344561389,1733549476490,-500.0,0.00012602,2]
[344561390,1733549476499,-500.0,0.00012602,2]
[344561391,1733549476508,-500.0,0.00012602,2]
[344561392,1733549476517,-500.0,0.00012602,2]
[344561393,1733549476526,-500.0,0.00012602,2]
[344561394,1733549476535,-500.0,0.00012602,2]
[344561395,1733549476545,-500.0,0.00012602,2]
[344561396,1733549476554,-500.0,0.00012602,2]
[344561397,1733549476563,-500.0,0.00012602,2]
[344561398,1733549476572,-456.08,0.00012602,2]
[344561399,1733549476582,-500.0,0.00012602,2]
[344561400,1733549476591,-500.0,0.00012602,2]
[344561401,1733549476600,-500.0,0.00012602,2]
[344561402,1733549476609,-500.0,0.00012602,2]
[344561403,1733549476618,-500.0,0.00012602,2]
[344561404,1733549476627,-601.53810332,0.00012602,2]
[344561405,1733549476636,-500.0,0.00012602,2]
[344561406,1733549476646,-500.0,0.00012602,2]
[344561407,1733549476655,-366.27383148,0.00012602,2]
[344561408,1733549476665,-500.0,0.00012602,2]
[344561409,1733549476674,-1200.0,0.00012602,2]
[344561410,1733549476684,-500.0,0.00012602,2]
[344561411,1733549476694,-500.0,0.00012602,2]
[344561412,1733549476704,-500.0,0.00012602,2]
[344561413,1733549476713,-500.0,0.00012602,2]
[344561414,1733549476723,-500.0,0.00012602,2]
[344561415,1733549476732,-500.0,0.00012602,2]
[344561416,1733549476743,-611.25,0.00012602,2]
[344561417,1733549476753,-500.0,0.00012602,2]
[344561418,1733549476764,-584.81,0.00012602,2]
[344561419,1733549476774,-500.0,0.00012602,2]
[344561420,1733549476783,-500.0,0.00012602,2]
[344561421,1733549476795,-500.0,0.00012602,2]
[344561422,1733549476805,-500.0,0.00012602,2]
[344561423,1733549476815,-500.0,0.00012602,2]
[344561424,1733549476826,-674.5,0.00012602,2]
[344561425,1733549476836,-546.48,0.00012602,2]
[344561426,1733549476846,-500.0,0.00012602,2]
[344561427,1733549476856,-500.0,0.00012602,2]
[344561428,1733549476866,-500.0,0.00012602,2]
[344561429,1733549476876,-646.07,0.00012602,2]
[344561430,1733549476886,-311.85,0.00012602,2]
[344561431,1733549476896,-500.0,0.00012602,2]
[344561432,1733549476905,-422.87918575,0.00012602,2]
[344561433,1733549476915,-500.0,0.00012602,2]
[344561434,1733549476925,-500.0,0.00012602,2]
[344561435,1733549476934,-500.0,0.00012602,2]
[344561436,1733549476944,-500.0,0.00012602,2]
[344561437,1733549476954,-554.34,0.00012602,2]
[344561438,1733549476964,-500.0,0.00012602,2]
[344561439,1733549476974,-500.0,0.00012602,2]
[344561440,1733549476984,-500.0,0.00012602,2]
[344561441,1733549476993,-500.0,0.00012602,2]
[344561442,1733549477003,-500.0,0.00012602,2]
[344561443,1733549477014,-500.0,0.00012602,2]
[344561444,1733549477024,-500.0,0.00012602,2]
[344561445,1733549477034,-500.0,0.00012602,2]
[344561446,1733549477045,-500.0,0.00012602,2]
[344561447,1733549477055,-500.0,0.00012602,2]
[344561448,1733549477066,-500.0,0.00012602,2]
[344561449,1733549477076,-500.0,0.00012602,2]
[344561450,1733549477086,-500.0,0.00012602,2]
[344561451,1733549477096,-653.9,0.00012602,2]
[344561452,1733549477105,-573.1,0.00012602,2]
[344561453,1733549477116,-500.0,0.00012602,2]
[344561454,1733549477126,-500.0,0.00012602,2]
[344561455,1733549477137,-500.0,0.00012602,2]
[344561456,1733549477148,-500.0,0.00012602,2]
[344561457,1733549477158,-500.0,0.00012602,2]
[344561458,1733549477168,-500.0,0.00012602,2]
[344561459,1733549477177,-500.0,0.00012602,2]
[344561460,1733549477188,-500.0,0.00012602,2]
[344561461,1733549477198,-500.0,0.00012602,2]
[344561462,1733549477207,-500.0,0.00012602,2]
[344561463,1733549477218,-500.0,0.00012602,2]
[344561464,1733549477228,-500.0,0.00012602,2]
[344561465,1733549477237,-500.0,0.00012602,2]
[344561466,1733549477247,-500.0,0.00012602,2]
[344561467,1733549477258,-500.0,0.00012602,2]
[344561468,1733549477267,-500.0,0.00012602,2]
[344561469,1733549477280,-500.0,0.00012602,2]
[344561470,1733549477291,-500.0,0.00012602,2]
[344561471,1733549477301,-500.0,0.00012602,2]
[344561472,1733549477311,-500.0,0.00012602,2]
[344561473,1733549477322,-500.0,0.00012602,2]
[344561474,1733549477332,-533.66,0.00012602,2]
[344561475,1733549477342,-500.0,0.00012602,2]
[344561476,1733549477353,-500.0,0.00012602,2]
[344561477,1733549477362,-500.0,0.00012602,2]
[344561478,1733549477372,-500.0,0.00012602,2]
[344561479,1733549477382,-500.0,0.00012602,2]
[344561480,1733549477392,-553.75,0.00012602,2]
[344561481,1733549477401,-706.71,0.00012602,2]
[344561482,1733549477411,-500.0,0.00012602,2]
[344561483,1733549477422,-500.0,0.00012602,2]
[344561484,1733549477431,-500.0,0.00012602,2]
[344561485,1733549477441,-500.0,0.00012602,2]
[344561486,1733549477450,-500.0,0.00012602,2]
[344561487,1733549477460,-500.0,0.00012602,2]
[344561488,1733549477470,-903.49,0.00012602,2]
[344561489,1733549477480,-500.0,0.00012602,2]
[344561490,1733549477490,-500.0,0.00012602,2]
[344561491,1733549477500,-500.0,0.00012602,2]
[344561492,1733549477510,-667.25,0.00012602,2]
[344561493,1733549477520,-500.0,0.00012602,2]
[344561494,1733549477530,-500.0,0.00012602,2]
[344561495,1733549477541,-534.82,0.00012602,2]
[344561496,1733549477551,-500.0,0.00012602,2]
[344561497,1733549477561,-761.25,0.00012602,2]
[344561498,1733549477570,-2234.74,0.00012602,2]
[344561499,1733549477580,-500.0,0.00012602,2]
[344561500,1733549477590,-1186.86,0.00012602,2]
[344561501,1733549477601,-500.0,0.00012602,2]
[344561502,1733549477611,-385.28,0.00012602,2]
[344561503,1733549477620,-1083.49,0.00012602,2]
[344561504,1733549477631,-500.0,0.00012602,2]
[344561505,1733549477641,-500.0,0.00012602,2]
[344561506,1733549477651,-500.0,0.00012602,2]
[344561507,1733549477662,-566.02,0.00012602,2]
[344561508,1733549477672,-354.28,0.00012602,2]
[344561509,1733549477683,-500.0,0.00012602,2]
[344561510,1733549477694,-500.0,0.00012602,2]
[344561511,1733549477705,-855.15,0.00012602,2]
[344561512,1733549477715,-500.0,0.00012602,2]
[344561513,1733549477726,-500.0,0.00012602,2]
[344561514,1733549477737,-500.0,0.00012602,2]
[344561515,1733549477747,-500.0,0.00012602,2]
[344561516,1733549477758,-500.0,0.00012602,2]
[344561517,1733549477768,-1079.81,0.00012602,2]
[344561518,1733549477778,-564.24,0.00012602,2]
[344561519,1733549477788,-500.0,0.00012602,2]
[344561520,1733549477803,-500.0,0.00012602,2]
[344561521,1733549477813,-500.0,0.00012602,2]
[344561522,1733549477823,-500.0,0.00012602,2]
[344561523,1733549477833,-361.36,0.00012602,2]
[344561524,1733549477843,-500.0,0.00012602,2]
[344561525,1733549477854,-500.0,0.00012602,2]
[344561526,1733549477864,-515.46,0.00012602,2]
[344561527,1733549477874,-500.0,0.00012602,2]
[344561528,1733549477884,-500.0,0.00012602,2]
[344561529,1733549477893,-664.72,0.00012602,2]
[344561530,1733549477904,-500.0,0.00012602,2]
[344561531,1733549477914,-500.0,0.00012602,2]
[344561532,1733549477923,-500.0,0.00012602,2]
[344561533,1733549477933,-646.87,0.00012602,2]
[344561534,1733549477942,-587.11,0.00012602,2]
[344561535,1733549477952,-500.0,0.00012602,2]
[344561536,1733549477962,-500.0,0.00012602,2]
[344561537,1733549477972,-2725.2,0.00012602,2]
[344561538,1733549477982,-500.0,0.00012602,2]
[344561539,1733549477992,-500.0,0.00012602,2]
[344561540,1733549478002,-690.49,0.00012602,2]
[344561541,1733549478012,-574.11,0.00012602,2]
[344561542,1733549478022,-806.55,0.00012602,2]
[344561543,1733549478032,-500.0,0.00012602,2]
[344561544,1733549478042,-392.12,0.00012602,2]
[344561545,1733549478053,-500.0,0.00012602,2]
[344561546,1733549478063,-664.19,0.00012602,2]
[344561547,1733549478073,-500.0,0.00012602,2]
[344561548,1733549478083,-500.0,0.00012602,2]
[344561549,1733549478092,-874.49,0.00012602,2]
[344561550,1733549478103,-500.0,0.00012602,2]
[344561551,1733549478113,-500.0,0.00012602,2]
[344561552,1733549478123,-500.0,0.00012602,2]
[344561553,1733549478133,-3079.62,0.00012602,2]
[344561554,1733549478143,-556.08,0.00012602,2]
[344561555,1733549478154,-500.0,0.00012602,2]
[344561556,1733549478165,-1578.67,0.00012602,2]
[344561557,1733549478175,-500.0,0.00012602,2]
[344561558,1733549478186,-500.0,0.00012602,2]
[344561559,1733549478197,-500.0,0.00012602,2]
[344561560,1733549478209,-500.0,0.00012602,2]
[344561561,1733549478220,-500.0,0.00012602,2]
[344561562,1733549478231,-500.0,0.00012609,2]
[344561563,1733549478241,-517.0,0.00012609,2]
[344561564,1733549478251,-529.18,0.0001261,2]
[344561565,1733549478261,-500.0,0.0001261,2]
[344561566,1733549478272,-500.0,0.0001261,2]
[344561567,1733549478285,-500.0,0.0001261,2]
[344561568,1733549478297,-500.0,0.0001261,2]
[344561569,1733549478308,-500.0,0.0001261,2]
[344561570,1733549478319,-500.0,0.0001261,2]
[344561571,1733549478329,-530.18,0.0001261,2]
[344561572,1733549478338,-500.0,0.0001261,2]
[344561573,1733549478349,-500.0,0.0001261,2]
[344561574,1733549478359,-500.0,0.0001261,2]
[344561575,1733549478369,-500.0,0.0001261,2]
[344561576,1733549478379,-500.0,0.0001261,2]
[344561577,1733549478388,-500.0,0.0001261,2]
[344561578,1733549478398,-500.0,0.0001261,2]
[344561579,1733549478407,-500.0,0.0001261,2]
[344561580,1733549478417,-541.02,0.0001261,2]
[344561581,1733549478427,-500.0,0.0001261,2]
[344561582,1733549478436,-500.0,0.0001261,2]
[344561583,1733549478446,-500.0,0.0001261,2]
[344561584,1733549478457,-500.0,0.0001261,2]